[Event "23rd Hoogeveen Open 2019"]
[Site "Hoogeveen"]
[Date "2019.10.24"]
[Round "7.12"]
[White "Morozov, Nichita"]
[Black "De Boer, Eelke"]
[Result "1-0"]
[ECO "E90"]
[WhiteElo "2394"]
[BlackElo "2323"]
[Annotator "NA"]
[PlyCount "69"]
[EventDate "2019.10.19"]
[EventType "swiss"]
[EventCountry "NED"]
[SourceTitle "playchess.com"]
[Source "ChessBase"]
[SourceQuality "1"]
[TimeControl "40/5400+30:1800+30"]

1. d4 {[%emt 0:05:47]} Nf6 {[%emt 0:00:00]} 2. c4 {[%emt 0:00:05]} g6 {[%emt 0:00:00]} 3. Nc3 {[%emt 0:00:01]} Bg7 {[%emt 0:00:00]} 4. e4 {[%emt 0:00:06]} d6 {[%emt 0:00:00]} 5. h3 {[%emt 0:00:42]} Nbd7 {[%emt 0:00:10]} 6. Be3 {[%emt 0:00:50]} e5 {[%emt 0:00:19]} 7. d5 {[%emt 0:00:25]} Nc5 {[%emt 0:00:05]} 8. Qc2 {[%emt 0:00:38]} O-O {[%emt 0:06:07]} 9. Nf3 {[%emt 0:05:11]} Nh5 {[%emt 0:04:05]} 10. g3 {[%emt 0:22:22]} f5 {[%emt 0:09:33]} 11. Bxc5 {[%emt 0:12:04]} dxc5 {[%emt 0:01:32]} 12. Bd3 {[%emt 0:00:14]} Qe7 {[%emt 0:07:34]} 13. O-O-O {[%emt 0:04:31]} f4 {[%emt 0:00:37]} 14. g4 {[%emt 0:00:08]} Nf6 {[%emt 0:00:06]} 15. g5 {[%emt 0:02:25]} Ne8 {[%emt 0:00:31]} 16. Rdg1 {[%emt 0:00:12]} a6 {[%emt 0:03:22]} 17. Kb1 {[%emt 0:03:08]} Nd6 {[%emt 0:00:10]} 18. Bf1 {[%emt 0:04:39]} Rb8 {[%emt 0:02:01]} 19. h4 {[%emt 0:00:53]} b5 {[%emt 0:03:41]} 20. Nd2 {[%emt 0:00:27]} Rb6 {[%emt 0:09:42]} 21. cxb5 {[%emt 0:06:29]} axb5 {[%emt 0:00:10]} 22. a4 {[%emt 0:00:03]} b4 {[%emt 0:14:26]} 23. Nb5 {[%emt 0:00:11]} Nxb5 {[%emt 0:08:48]} 24. Bxb5 {[%emt 0:06:22]} Rd8 {[%emt 0:00:30]} 25. Rc1 {[%emt 0:06:50]} Bf8 {[%emt 0:01:01]} 26. Nc4 {[%emt 0:01:18]} Rb8 {[%emt 0:04:58]} 27. Na5 {[%emt 0:00:13]} Bb7 {[%emt 0:10:49]} 28. Nb3 {[%emt 0:00:36]} Rdc8 {[%emt 0:04:13]} 29. Rhd1 {[%emt 0:01:07]} Ba8 {[%emt 0:03:56]} 30. Nxc5 {[%emt 0:00:33]} Rb6 {[%emt 0:01:01]} 31. Nd7 {[%emt 0:05:46]} Rd6 {[%emt 0:02:08]} 32. Nxf8 {[%emt 0:00:05]} Kxf8 {[%emt 0:00:47]} 33. f3 {[%emt 0:00:20]} Bb7 {[%emt 0:01:24]} 34. Qc4 {[%emt 0:01:25]} Rdd8 {[%emt 0:01:11]} 35. Ka2 {[%emt 0:01:00]} 1-0

[Event "23rd Hoogeveen Open 2019"]
[Site "Hoogeveen"]
[Date "2019.10.24"]
[Round "7.14"]
[White "Van Dael, Siem"]
[Black "Dixit, Nikhil"]
[Result "1/2-1/2"]
[ECO "A03"]
[WhiteElo "2273"]
[BlackElo "2358"]
[Annotator "NA"]
[PlyCount "61"]
[EventDate "2019.10.19"]
[EventType "swiss"]
[EventCountry "NED"]
[SourceTitle "playchess.com"]
[Source "ChessBase"]
[SourceQuality "1"]
[TimeControl "40/5400+30:1800+30"]

1. f4 {[%emt 0:00:00]} g6 {[%emt 0:00:19]} 2. g3 {[%emt 0:00:15]} Bg7 {[%emt 0:01:03]} 3. Bg2 {[%emt 0:00:08]} d5 {[%emt 0:01:48]} 4. Nf3 {[%emt 0:01:16]} Nf6 {[%emt 0:00:25]} 5. c3 {[%emt 0:00:37]} c5 {[%emt 0:01:19]} 6. d3 {[%emt 0:01:07]} Nc6 {[%emt 0:01:32]} 7. e3 {[%emt 0:02:09]} O-O {[%emt 0:02:16]} 8. O-O {[%emt 0:00:16]} Qc7 {[%emt 0:00:44]} 9. Nbd2 {[%emt 0:00:21]} e5 {[%emt 0:05:44]} 10. Nxe5 {[%emt 0:01:32]} Nxe5 {[%emt 0:00:16]} 11. fxe5 {[%emt 0:00:22]} Qxe5 {[%emt 0:01:21]} 12. e4 {[%emt 0:00:19]} Bg4 {[%emt 0:11:05]} 13. Qc2 {[%emt 0:02:06]} Rfe8 {[%emt 0:16:52]} 14. exd5 {[%emt 0:04:51]} Qe3+ {[%emt 0:10:30]} 15. Rf2 {[%emt 0:01:44]} Qe1+ {[%emt 0:03:37]} 16. Nf1 {[%emt 0:02:01]} Bf5 {[%emt 0:04:59]} 17. Bf3 {[%emt 0:12:12]} c4 {[%emt 0:02:17]} 18. Re2 {[%emt 0:00:50]} cxd3 {[%emt 0:06:23]} 19. Rxe1 {[%emt 0:00:18]} dxc2 {[%emt 0:00:17]} 20. Bf4 {[%emt 0:01:30]} Rxe1 {[%emt 0:05:14]} 21. Rxe1 {[%emt 0:00:06]} Rd8 {[%emt 0:00:46]} 22. Ne3 {[%emt 0:01:16]} Bd3 {[%emt 0:01:16]} 23. Rc1 {[%emt 0:01:17]} h6 {[%emt 0:04:38]} 24. h4 {[%emt 0:00:30]} Bf8 {[%emt 0:00:50]} 25. b4 {[%emt 0:10:18]} b5 {[%emt 0:03:04]} 26. Nxc2 {[%emt 0:10:15]} Nxd5 {[%emt 0:01:14]} 27. Bxd5 {[%emt 0:00:09]} Rxd5 {[%emt 0:00:27]} 28. Ne3 {[%emt 0:00:06]} Rd7 {[%emt 0:03:36]} 29. Ng4 {[%emt 0:04:33]} Bg7 {[%emt 0:00:32]} 30. Ne5 {[%emt 0:02:17]} Bxe5 {[%emt 0:03:15]} 31. Bxe5 {[%emt 0:00:06]} 1/2-1/2

[Event "23rd Hoogeveen Open 2019"]
[Site "Hoogeveen"]
[Date "2019.10.24"]
[Round "7.15"]
[White "Adocchio, Giampiero"]
[Black "Vrolijk, Liam"]
[Result "0-1"]
[ECO "A46"]
[WhiteElo "2184"]
[BlackElo "2478"]
[Annotator "ChessBase"]
[PlyCount "124"]
[EventDate "2019.10.19"]
[EventType "swiss"]
[EventCountry "NED"]
[SourceTitle "playchess.com"]
[Source "ChessBase"]
[SourceQuality "1"]
[TimeControl "40/5400+30:1800+30"]

1. d4 {[%emt 0:00:00]} Nf6 {[%emt 0:00:00]} 2. Nf3 {[%emt 0:00:00]} e6 {[%emt 0:00:00]} 3. g3 {[%emt 0:00:00]} b5 {[%emt 0:00:07]} 4. Bg2 {[%emt 0:00:08]} Bb7 {[%emt 0:00:09]} 5. O-O {[%emt 0:00:07]} c5 {[%emt 0:01:17]} 6. c3 {[%emt 0:09:27]} d5 {[%emt 0:01:27]} 7. a4 {[%emt 0:01:02]} b4 {[%emt 0:04:45]} 8. cxb4 {[%emt 0:10:18]} cxb4 {[%emt 0:00:09]} 9. Bg5 {[%emt 0:00:23]} Bd6 {[%emt 0:02:56]} 10. Nbd2 {[%emt 0:00:27]} Nbd7 {[%emt 0:01:38]} 11. a5 {[%emt 0:02:30]} Rc8 {[%emt 0:03:09]} 12. Nb3 {[%emt 0:06:20]} Ba6 {[%emt 0:01:22]} 13. Re1 {[%emt 0:03:59]} O-O {[%emt 0:02:42]} 14. Nfd2 {[%emt 0:04:32]} Qc7 {[%emt 0:03:25]} 15. Rc1 {[%emt 0:05:11]} Qb8 {[%emt 0:01:36]} 16. Rxc8 {[%emt 0:01:26]} Rxc8 {[%emt 0:01:23]} 17. e4 {[%emt 0:01:15]} dxe4 {[%emt 0:01:35]} 18. Nxe4 {[%emt 0:00:06]} Nxe4 {[%emt 0:01:19]} 19. Bxe4 {[%emt 0:02:00]} h6 {[%emt 0:00:11]} 20. Be3 {[%emt 0:02:46]} Nf6 {[%emt 0:02:01]} 21. Bg2 {[%emt 0:00:16]} Bc4 {[%emt 0:03:45]} 22. Nd2 {[%emt 0:05:01]} Bd3 {[%emt 0:01:55]} 23. Bf1 {[%emt 0:06:30]} Bxf1 {[%emt 0:03:08]} 24. Rxf1 {[%emt 0:02:26]} Qb5 {[%emt 0:00:07]} 25. Nb3 {[%emt 0:00:45]} Rc7 {[%emt 0:03:15]} 26. Qf3 {[%emt 0:08:55]} Kh7 {[%emt 0:08:28]} 27. Rc1 {[%emt 0:08:35]} Rxc1+ {[%emt 0:03:26]} 28. Bxc1 {[%emt 0:00:05]} Bc7 {[%emt 0:02:03]} 29. Bf4 {[%emt 0:03:21]} Bxa5 {[%emt 0:06:11]} 30. Be5 {[%emt 0:01:24]} Bd8 {[%emt 0:01:19]} 31. Qa8 {[%emt 0:00:06]} Ng4 {[%emt 0:07:35]} 32. h3 {[%emt 0:13:44]} Nxe5 {[%emt 0:01:01]} 33. dxe5 {[%emt 0:00:02]} Bc7 {[%emt 0:03:04]} 34. Qxa7 {[%emt 0:01:05]} Bxe5 {[%emt 0:00:35]} 35. Qxf7 {[%emt 0:00:51]} Qd5 {[%emt 0:04:18]} 36. Qh5 {[%emt 0:00:04]} g6 {[%emt 0:00:20]} 37. Qe2 {[%emt 0:00:06]} Bxg3 {[%emt 0:00:07]} 38. fxg3 {[%emt 0:00:46]} Qxb3 {[%emt 0:00:07]} 39. Kh2 {[%emt 0:00:11]} Qd5 {[%emt 0:01:22]} 40. Qf2 {[%emt 0:01:49]} Qd7 {[%emt 0:01:08]} 41. b3 {[%emt 0:31:34]} Qe7 {[%emt 0:37:33]} 42. Qe3 {[%emt 0:00:49]} h5 {[%emt 0:00:19]} 43. Qe4 {[%emt 0:00:00]} e5 {[%emt 0:00:00]} 44. h4 {[%emt 0:00:00]} Kg7 {[%emt 0:00:00]} 45. Kg2 {[%emt 0:00:00]} Qd6 {[%emt 0:00:00]} 46. Qb7+ {[%emt 0:00:00]} Kf6 {[%emt 0:00:00]} 47. Qf3+ {[%emt 0:00:00]} Ke6 {[%emt 0:00:00]} 48. Kh2 {[%emt 0:00:00]} Qd2+ {[%emt 0:00:00]} 49. Kg1 {[%emt 0:00:00]} Qd4+ {[%emt 0:00:00]} 50. Kh2 {[%emt 0:00:00]} Qc5 {[%emt 0:00:00]} 51. Qa8 {[%emt 0:00:00]} Qf2+ {[%emt 0:00:00]} 52. Kh1 {[%emt 0:00:00]} Qe1+ {[%emt 0:00:00]} 53. Kh2 {[%emt 0:00:00]} Qe2+ {[%emt 0:00:00]} 54. Kh1 {[%emt 0:00:00]} Kf5 {[%emt 0:00:00]} 55. Qc8+ {[%emt 0:00:00]} Ke4 {[%emt 0:00:00]} 56. Qb7+ {[%emt 0:00:00]} Ke3 {[%emt 0:00:00]} 57. Qb6+ {[%emt 0:00:00]} Kf3 {[%emt 0:00:00]} 58. Qf6+ {[%emt 0:00:00]} Kxg3 {[%emt 0:00:00]} 59. Qxg6+ {[%emt 0:00:00]} Qg4 {[%emt 0:00:00]} 60. Qg5 {[%emt 0:00:00]} e4 {[%emt 0:00:00]} 61. Qe5+ {[%emt 0:00:00]} Kf3 {[%emt 0:00:00]} 62. Qf6+ {[%emt 0:00:00]} Qf4 {[%emt 0:00:00]} 0-1

[Event "23rd Hoogeveen Open 2019"]
[Site "Hoogeveen"]
[Date "2019.10.24"]
[Round "7.16"]
[White "Van der Velde, Henk"]
[Black "Vestby-Ellingsen, Mads"]
[Result "0-1"]
[ECO "A36"]
[WhiteElo "2118"]
[BlackElo "2363"]
[Annotator "NA"]
[PlyCount "46"]
[EventDate "2019.10.19"]
[EventType "swiss"]
[EventCountry "NED"]
[SourceTitle "playchess.com"]
[Source "ChessBase"]
[SourceQuality "1"]
[TimeControl "40/5400+30:1800+30"]

1. c4 {[%emt 0:00:00]} c5 {[%emt 0:00:00]} 2. g3 {[%emt 0:00:00]} g6 {[%emt 0:00:00]} 3. Bg2 {[%emt 0:00:00]} Bg7 {[%emt 0:00:12]} 4. Nc3 {[%emt 0:00:05]} Nc6 {[%emt 0:00:11]} 5. a3 {[%emt 0:00:27]} e6 {[%emt 0:00:57]} 6. Rb1 {[%emt 0:00:13]} Nge7 {[%emt 0:01:11]} 7. b4 {[%emt 0:04:40]} cxb4 {[%emt 0:00:54]} 8. axb4 {[%emt 0:00:12]} d5 {[%emt 0:02:19]} 9. cxd5 {[%emt 0:17:36]} exd5 {[%emt 0:01:39]} 10. b5 {[%emt 0:07:50]} Na5 {[%emt 0:00:25]} 11. d4 {[%emt 0:02:27]} Bf5 {[%emt 0:08:12]} 12. Rb4 {[%emt 0:15:20]} Rc8 {[%emt 0:03:52]} 13. Bd2 {[%emt 0:01:28]} Qd6 {[%emt 0:34:13]} 14. Qa4 {[%emt 0:20:45]} Nc4 {[%emt 0:00:27]} 15. Bf4 {[%emt 0:00:45]} Qb6 {[%emt 0:00:29]} 16. Nh3 {[%emt 0:03:14]} Bxd4 {[%emt 0:11:03]} 17. Nxd5 {[%emt 0:03:34]} Nxd5 {[%emt 0:00:15]} 18. Rxc4 {[%emt 0:00:02]} Rxc4 {[%emt 0:00:47]} 19. Qxc4 {[%emt 0:00:02]} Nxf4 {[%emt 0:00:53]} 20. Nxf4 {[%emt 0:01:51]} Qa5+ {[%emt 0:06:41]} 21. Kd1 {[%emt 0:00:09]} Qa1+ {[%emt 0:06:18]} 22. Kd2 {[%emt 0:01:48]} Qb2+ {[%emt 0:00:19]} 23. Kd1 {[%emt 0:00:12]} Bc3 {[%emt 0:01:37]} 0-1

[Event "23rd Hoogeveen Open 2019"]
[Site "Hoogeveen"]
[Date "2019.10.24"]
[Round "7.17"]
[White "Hoffman, Ron"]
[Black "Wiersma, Eelke"]
[Result "1/2-1/2"]
[ECO "A34"]
[WhiteElo "1991"]
[BlackElo "2321"]
[Annotator "NA"]
[PlyCount "28"]
[EventDate "2019.10.19"]
[EventType "swiss"]
[EventCountry "NED"]
[SourceTitle "playchess.com"]
[Source "ChessBase"]
[SourceQuality "1"]
[TimeControl "40/5400+30:1800+30"]

1. Nf3 {[%emt 0:00:37]} Nf6 {[%emt 0:00:00]} 2. c4 {[%emt 0:00:31]} c5 {[%emt 0:00:05]} 3. Nc3 {[%emt 0:02:11]} Nc6 {[%emt 0:02:31]} 4. e3 {[%emt 0:05:45]} e5 {[%emt 0:00:24]} 5. d3 {[%emt 0:03:06]} d5 {[%emt 0:01:08]} 6. cxd5 {[%emt 0:02:46]} Nxd5 {[%emt 0:02:13]} 7. Be2 {[%emt 0:01:54]} Nc7 {[%emt 0:01:18]} 8. O-O {[%emt 0:01:12]} Be7 {[%emt 0:00:14]} 9. b3 {[%emt 0:01:50]} O-O {[%emt 0:02:25]} 10. Bb2 {[%emt 0:00:20]} Be6 {[%emt 0:04:43]} 11. Rc1 {[%emt 0:01:49]} b6 {[%emt 0:12:57]} 12. Ne4 {[%emt 0:03:34]} f6 {[%emt 0:04:54]} 13. d4 {[%emt 0:04:53]} f5 {[%emt 0:13:41]} 14. Ng3 {[%emt 0:01:31]} exd4 {[%emt 0:06:53]} 1/2-1/2

[Event "23rd Hoogeveen Open 2019"]
[Site "Hoogeveen"]
[Date "2019.10.24"]
[Round "7.18"]
[White "Bhambure, Shantanu"]
[Black "Barthel, Ansgar"]
[Result "1-0"]
[ECO "D34"]
[WhiteElo "2291"]
[BlackElo "2037"]
[Annotator "NA"]
[PlyCount "95"]
[EventDate "2019.10.19"]
[EventType "swiss"]
[EventCountry "NED"]
[SourceTitle "playchess.com"]
[Source "ChessBase"]
[SourceQuality "1"]
[TimeControl "40/5400+30:1800+30"]

1. d4 {[%emt 0:00:00]} d5 {[%emt 0:00:00]} 2. c4 {[%emt 0:00:00]} e6 {[%emt 0:00:00]} 3. Nc3 {[%emt 0:00:00]} c5 {[%emt 0:00:00]} 4. cxd5 {[%emt 0:00:00]} exd5 {[%emt 0:00:00]} 5. Nf3 {[%emt 0:00:02]} Nc6 {[%emt 0:00:00]} 6. g3 {[%emt 0:00:05]} Nf6 {[%emt 0:00:00]} 7. Bg2 {[%emt 0:00:05]} Be7 {[%emt 0:00:04]} 8. O-O {[%emt 0:00:07]} O-O {[%emt 0:00:04]} 9. dxc5 {[%emt 0:00:15]} Bxc5 {[%emt 0:00:05]} 10. a3 {[%emt 0:00:03]} Ne4 {[%emt 0:00:15]} 11. Nxd5 {[%emt 0:02:08]} Be6 {[%emt 0:00:06]} 12. Nc3 {[%emt 0:00:33]} Qxd1 {[%emt 0:15:17]} 13. Nxd1 {[%emt 0:01:10]} Na5 {[%emt 0:00:18]} 14. Ng5 {[%emt 0:22:32]} Nxg5 {[%emt 0:02:02]} 15. Bxg5 {[%emt 0:00:05]} Nb3 {[%emt 0:00:10]} 16. Rb1 {[%emt 0:01:19]} h6 {[%emt 0:01:48]} 17. Bc1 {[%emt 0:04:27]} Rad8 {[%emt 0:16:40]} 18. Nc3 {[%emt 0:04:27]} b6 {[%emt 0:06:42]} 19. Re1 {[%emt 0:05:22]} Nxc1 {[%emt 0:11:33]} 20. Rbxc1 {[%emt 0:09:30]} Bb3 {[%emt 0:00:07]} 21. Ne4 {[%emt 0:21:12]} Bd4 {[%emt 0:08:33]} 22. e3 {[%emt 0:00:41]} Be5 {[%emt 0:00:43]} 23. f4 {[%emt 0:00:59]} Bb8 {[%emt 0:00:08]} 24. Rc3 {[%emt 0:02:43]} Bd5 {[%emt 0:01:02]} 25. Nf2 {[%emt 0:03:26]} Bxg2 {[%emt 0:00:36]} 26. Kxg2 {[%emt 0:00:03]} Rd2 {[%emt 0:00:09]} 27. b4 {[%emt 0:02:31]} Rfd8 {[%emt 0:00:28]} 28. Rec1 {[%emt 0:01:39]} Bd6 {[%emt 0:01:48]} 29. Rc8 {[%emt 0:05:51]} Rxc8 {[%emt 0:00:13]} 30. Rxc8+ {[%emt 0:00:02]} Kh7 {[%emt 0:00:07]} 31. Kf3 {[%emt 0:04:51]} f5 {[%emt 0:03:01]} 32. Rc6 {[%emt 0:05:53]} Bf8 {[%emt 0:02:27]} 33. Rc8 {[%emt 0:00:17]} Bd6 {[%emt 0:00:08]} 34. Rc6 {[%emt 0:00:05]} Bf8 {[%emt 0:00:05]} 35. Rc3 {[%emt 0:02:58]} a5 {[%emt 0:03:49]} 36. Rc8 {[%emt 0:01:54]} Be7 {[%emt 0:15:47]} 37. Rc6 {[%emt 0:00:12]} axb4 {[%emt 0:00:28]} 38. axb4 {[%emt 0:00:07]} Bxb4 {[%emt 0:01:05]} 39. Rxb6 {[%emt 0:00:08]} Bf8 {[%emt 0:03:40]} 40. Rb5 {[%emt 0:00:13]} g6 {[%emt 0:01:40]} 41. Rb7+ {[%emt 0:30:43]} Bg7 {[%emt 0:32:04]} 42. g4 {[%emt 0:00:00]} Rb2 {[%emt 0:00:00]} 43. Rd7 {[%emt 0:00:00]} Rb5 {[%emt 0:00:00]} 44. h3 {[%emt 0:00:00]} Ra5 {[%emt 0:00:00]} 45. Nh1 {[%emt 0:00:00]} Rb5 {[%emt 0:00:00]} 46. Ng3 {[%emt 0:00:00]} Ra5 {[%emt 0:00:00]} 47. gxf5 {[%emt 0:00:00]} gxf5 {[%emt 0:00:00]} 48. Nh5 {[%emt 0:00:00]} 1-0

[Event "23rd Hoogeveen Open 2019"]
[Site "Hoogeveen"]
[Date "2019.10.24"]
[Round "7.19"]
[White "Grooten, Herman"]
[Black "Van Foreest, Machteld"]
[Result "1-0"]
[ECO "E12"]
[WhiteElo "2274"]
[BlackElo "2142"]
[Annotator "NA"]
[PlyCount "80"]
[EventDate "2019.10.19"]
[EventType "swiss"]
[EventCountry "NED"]
[SourceTitle "playchess.com"]
[Source "ChessBase"]
[SourceQuality "1"]
[TimeControl "40/5400+30:1800+30"]

1. d4 {[%emt 0:00:00]} Nf6 {[%emt 0:00:00]} 2. c4 {[%emt 0:00:00]} e6 {[%emt 0:00:00]} 3. Nf3 {[%emt 0:00:00]} b6 {[%emt 0:00:00]} 4. a3 {[%emt 0:00:08]} Bb7 {[%emt 0:00:34]} 5. Nc3 {[%emt 0:00:09]} d5 {[%emt 0:04:54]} 6. Bg5 {[%emt 0:01:18]} Be7 {[%emt 0:02:12]} 7. Qa4+ {[%emt 0:00:30]} c6 {[%emt 0:07:41]} 8. Bxf6 {[%emt 0:00:37]} Bxf6 {[%emt 0:01:21]} 9. cxd5 {[%emt 0:00:07]} exd5 {[%emt 0:00:43]} 10. g3 {[%emt 0:00:06]} O-O {[%emt 0:03:19]} 11. Bg2 {[%emt 0:05:03]} Na6 {[%emt 0:05:41]} 12. O-O {[%emt 0:00:36]} Nc7 {[%emt 0:01:24]} 13. Rfd1 {[%emt 0:00:31]} Re8 {[%emt 0:03:35]} 14. Rac1 {[%emt 0:02:32]} Qd6 {[%emt 0:09:11]} 15. e3 {[%emt 0:06:08]} a6 {[%emt 0:13:26]} 16. Qc2 {[%emt 0:07:46]} Nb5 {[%emt 0:06:19]} 17. Ne2 {[%emt 0:03:25]} Qe7 {[%emt 0:03:28]} 18. Nf4 {[%emt 0:07:20]} Nd6 {[%emt 0:02:09]} 19. Nd3 {[%emt 0:00:57]} Ne4 {[%emt 0:02:37]} 20. Qb3 {[%emt 0:03:14]} b5 {[%emt 0:07:30]} 21. Nc5 {[%emt 0:13:22]} Nxc5 {[%emt 0:04:25]} 22. Rxc5 {[%emt 0:00:08]} Qe6 {[%emt 0:01:49]} 23. Rdc1 {[%emt 0:01:46]} Be7 {[%emt 0:04:01]} 24. R5c2 {[%emt 0:00:23]} Bd6 {[%emt 0:02:17]} 25. Nd2 {[%emt 0:01:23]} f5 {[%emt 0:01:11]} 26. Qd3 {[%emt 0:02:42]} a5 {[%emt 0:00:42]} 27. Nb3 {[%emt 0:02:38]} Kh8 {[%emt 0:03:37]} 28. Qd2 {[%emt 0:01:09]} b4 {[%emt 0:02:37]} 29. Nc5 {[%emt 0:00:22]} Bxc5 {[%emt 0:00:39]} 30. Rxc5 {[%emt 0:00:06]} bxa3 {[%emt 0:00:40]} 31. bxa3 {[%emt 0:00:06]} a4 {[%emt 0:01:06]} 32. Rb1 {[%emt 0:00:59]} Reb8 {[%emt 0:03:17]} 33. Rb6 {[%emt 0:06:33]} Ba6 {[%emt 0:03:08]} 34. Bxd5 {[%emt 0:06:32]} Qe7 {[%emt 0:00:21]} 35. Rcxc6 {[%emt 0:01:50]} Bb7 {[%emt 0:00:54]} 36. Qb2 {[%emt 0:02:28]} Qd7 {[%emt 0:00:35]} 37. Rc5 {[%emt 0:02:48]} Ra7 {[%emt 0:00:32]} 38. Rcb5 {[%emt 0:00:34]} Bxd5 {[%emt 0:00:22]} 39. Rxb8+ {[%emt 0:00:09]} Bg8 {[%emt 0:00:07]} 40. Rf8 {[%emt 0:03:08]} Qd8 {[%emt 0:00:56]} 1-0

[Event "23rd Hoogeveen Open 2019"]
[Site "Hoogeveen"]
[Date "2019.10.24"]
[Round "7.20"]
[White "Takawira, Erick"]
[Black "Blagojevic, Tijana"]
[Result "0-1"]
[ECO "C65"]
[WhiteElo "2101"]
[BlackElo "2151"]
[Annotator "NA RC"]
[PlyCount "145"]
[EventDate "2019.10.19"]
[EventType "swiss"]
[EventCountry "NED"]
[SourceTitle "playchess.com"]
[Source "ChessBase"]
[SourceQuality "1"]
[TimeControl "40/5400+30:1800+30"]

1. e4 {[%emt 0:00:00]} e5 {[%emt 0:00:00]} 2. Nf3 {[%emt 0:00:00]} Nc6 {[%emt 0:00:00]} 3. Bb5 {[%emt 0:00:00]} Nf6 {[%emt 0:00:00]} 4. d3 {[%emt 0:00:00]} Bc5 {[%emt 0:00:00]} 5. Bxc6 {[%emt 0:00:00]} dxc6 {[%emt 0:00:12]} 6. Be3 {[%emt 0:00:00]} Bd6 {[%emt 0:02:04]} 7. h3 {[%emt 0:00:00]} c5 {[%emt 0:01:56]} 8. Nbd2 {[%emt 0:01:06]} Nd7 {[%emt 0:03:16]} 9. O-O {[%emt 0:01:25]} O-O {[%emt 0:01:46]} 10. Re1 {[%emt 0:02:18]} Re8 {[%emt 0:00:32]} 11. Nf1 {[%emt 0:03:24]} Nf8 {[%emt 0:00:25]} 12. Ng3 {[%emt 0:00:07]} b6 {[%emt 0:02:51]} 13. a4 {[%emt 0:00:05]} a5 {[%emt 0:00:26]} 14. Qd2 {[%emt 0:02:57]} Ne6 {[%emt 0:05:21]} 15. Nf5 {[%emt 0:04:52]} Nd4 {[%emt 0:00:31]} 16. Bxd4 {[%emt 0:01:10]} cxd4 {[%emt 0:05:43]} 17. Nxd6 {[%emt 0:04:23]} Qxd6 {[%emt 0:00:14]} 18. Kh1 {[%emt 0:13:48]} Bd7 {[%emt 0:01:25]} 19. Nh2 {[%emt 0:03:15]} Re6 {[%emt 0:03:19]} 20. Rf1 {[%emt 0:01:58]} Rf6 {[%emt 0:02:27]} 21. Ng4 {[%emt 0:09:22]} Bxg4 {[%emt 0:01:27]} 22. hxg4 {[%emt 0:00:02]} Rf4 {[%emt 0:08:36]} 23. Qe2 {[%emt 0:08:32]} h5 {[%emt 0:08:45]} 24. gxh5 {[%emt 0:05:02]} Rh4+ {[%emt 0:04:59]} 25. Kg1 {[%emt 0:00:00]} Qh6 {[%emt 0:00:12]} 26. f3 {[%emt 0:07:04]} Rxh5 {[%emt 0:00:49]} 27. Kf2 {[%emt 0:00:49]} Rd8 {[%emt 0:03:29]} 28. Ke1 {[%emt 0:06:21]} Rh2 {[%emt 0:01:38]} 29. Rg1 {[%emt 0:00:51]} Rd6 {[%emt 0:00:27]} 30. Rd1 {[%emt 0:04:34]} Rg6 {[%emt 0:02:03]} 31. Qf2 {[%emt 0:03:16]} Rhxg2 {[%emt 0:02:53]} 32. Rxg2 {[%emt 0:01:26]} Qh1+ {[%emt 0:00:07]} 33. Ke2 {[%emt 0:03:51]} Qxg2 {[%emt 0:00:24]} 34. c3 {[%emt 0:03:45]} c5 {[%emt 0:02:41]} 35. c4 {[%emt 0:03:34]} Qh3 {[%emt 0:07:20]} 36. Rg1 {[%emt 0:00:21]} Rxg1 {[%emt 0:00:17]} 37. Qxg1 {[%emt 0:00:01]} Qh6 {[%emt 0:00:12]} 38. Kd1 {[%emt 0:02:06]} Qf4 {[%emt 0:00:51]} 39. Qg2 {[%emt 0:00:56]} Qe3 {[%emt 0:01:24]} 40. Kc2 {[%emt 0:00:04]} g6 {[%emt 0:05:39]} 41. Qf1 {[%emt 0:31:59]} Kg7 {[%emt 0:31:19]} 42. Kd1 {[%emt 0:00:10]} Kf6 {[%emt 0:00:20]} 43. Kc2 {[%emt 0:00:07]} Kg7 {[%emt 0:01:50]} 44. Kd1 {[%emt 0:02:18]} Qg5 {[%emt 0:00:05]} 45. Qf2 {[%emt 0:00:00]} f5 {[%emt 0:00:00]} 46. exf5 {[%emt 0:00:00]} gxf5 {[%emt 0:00:00]} 47. Qh2 {[%emt 0:00:00]} Qe3 {[%emt 0:00:00]} 48. Qg2+ {[%emt 0:00:00]} Kf6 {[%emt 0:00:00]} 49. Kc2 {[%emt 0:00:00]} e4 {[%emt 0:00:00]} 50. fxe4 {[%emt 0:00:00]} fxe4 {[%emt 0:00:00]} 51. dxe4 {[%emt 0:00:00]} Ke5 {[%emt 0:00:00]} 52. Qg7+ {[%emt 0:00:00]} Kxe4 {[%emt 0:00:00]} 53. Qg4+ {[%emt 0:02:33]} Ke5 {[%emt 0:00:00]} 54. Qg7+ {[%emt 0:01:03]} Kf4 {[%emt 0:00:00]} 55. Qh6+ {[%emt 0:00:11]} Kf3 {[%emt 0:00:00]} 56. Qh5+ {[%emt 0:03:29]} Kf2 {[%emt 0:00:00]} 57. Qh2+ {[%emt 0:01:13]} Kf1 {[%emt 0:00:00]} 58. Qh1+ {[%emt 0:02:09]} Qg1 {[%emt 0:00:00]} 59. Qh7 {[%emt 0:00:31]} Qf2+ {[%emt 0:00:00]} 60. Kb3 {[%emt 0:00:43]} Qf3+ {[%emt 0:00:00]} 61. Kc2 {[%emt 0:00:27]} Ke1 {[%emt 0:00:00]} 62. Kb1 {[%emt 0:00:49]} Qd1+ {[%emt 0:00:00]} 63. Ka2 {[%emt 0:00:00]} Qxa4+ {[%emt 0:00:00]} 64. Kb1 {[%emt 0:00:06]} Qxc4 {[%emt 0:00:00]} 65. Qh4+ {[%emt 0:00:06]} Kd1 {[%emt 0:00:00]} 66. Qh1+ {[%emt 0:00:58]} Kd2 {[%emt 0:00:27]} 67. Qh6+ {[%emt 0:00:10]} Ke2 {[%emt 0:02:19]} 68. Qh5+ {[%emt 0:01:04]} Kf2 {[%emt 0:00:26]} 69. Qh4+ {[%emt 0:00:35]} Kf3 {[%emt 0:00:34]} 70. Qh5+ {[%emt 0:00:53]} Kf4 {[%emt 0:00:18]} 71. Qh6+ {[%emt 0:00:12]} Ke5 {[%emt 0:00:30]} 72. Qxb6 {[%emt 0:00:54]} Qd5 {[%emt 0:05:47]} 73. Qxa5 {[%emt 0:01:05]} 0-1